fUST/lending_fUST_20250225
["ID","MTS","AMOUNT","RATE_DAILY","PERIOD"]
[354428478,1740486648062,-160.762672,0.000562,10]
[354428479,1740486648071,-500.0,0.00056438,120]
[354428480,1740486648081,-500.0,0.00056438,120]
[354428481,1740486648091,-500.0,0.00056438,120]
[354428482,1740486648103,-500.0,0.00056438,120]
[354428483,1740486648116,-500.0,0.00056438,120]
[354428484,1740486648125,-573.03,0.00056438,120]
[354428485,1740486648135,-500.0,0.00056438,120]
[354428486,1740486648146,-500.0,0.00056438,120]
[354428487,1740486648156,-500.0,0.00056438,120]
[354428488,1740486648166,-500.0,0.00056438,120]
[354428489,1740486648175,-500.0,0.00056438,120]
[354428490,1740486648185,-500.0,0.00056438,120]
[354428491,1740486648194,-500.0,0.00056438,120]
[354428492,1740486648204,-542.2,0.00056438,120]
[354428493,1740486648214,-500.0,0.00056438,120]
[354428494,1740486648224,-500.0,0.00056438,120]
[354428495,1740486648233,-500.0,0.00056438,120]
[354428496,1740486648243,-583.8,0.00056438,120]
[354428497,1740486648252,-500.0,0.00056438,120]
[354428498,1740486648262,-626.44,0.00056438,120]
[354428499,1740486648272,-500.0,0.00056438,120]
[354428500,1740486648281,-500.0,0.00056438,120]
[354428501,1740486648291,-500.0,0.00056438,120]
[354428502,1740486648302,-500.0,0.00056438,120]
[354428503,1740486648311,-500.0,0.00056438,120]
[354428504,1740486648321,-623.38,0.00056438,120]
[354428505,1740486648331,-542.11,0.00056438,120]
[354428506,1740486648340,-500.0,0.00056438,120]
[354428507,1740486648350,-500.0,0.00056438,120]
[354428508,1740486648359,-500.0,0.00056438,120]
[354428509,1740486648369,-574.88,0.00056438,120]
[354428510,1740486648379,-625.61,0.00056438,120]
[354428511,1740486648388,-683.86,0.00056438,120]
[354428512,1740486648398,-987.06,0.00056438,120]
[354428513,1740486648408,-500.0,0.00056438,120]
[354428514,1740486648418,-500.0,0.00056438,120]
[354428515,1740486648427,-316.29345168,0.00056438,120]
[354428516,1740486648437,-500.0,0.00056438,120]
[354428517,1740486648447,-500.0,0.00056438,120]
[354428518,1740486648458,-667.86,0.00056438,120]
[354428519,1740486648468,-7683.15,0.00056438,120]
[354428520,1740486648478,-1368.06,0.00056438,120]
[354428521,1740486648566,-418.68924236,0.00056438,120]
[354428522,1740486648577,-500.0,0.00056438,120]
[354428523,1740486648586,-500.0,0.00056438,120]
[354428524,1740486648596,-500.0,0.00056438,120]
[354428525,1740486648606,-2395.79,0.00056438,120]
[354428526,1740486648616,-500.0,0.00056438,120]
[354428527,1740486648625,-252.44959535,0.00056438,120]
[354428528,1740486648635,-500.0,0.00056438,120]
[354428529,1740486648644,-500.0,0.00056438,120]
[354428530,1740486648654,-509.88739545,0.00056438,120]
[354428531,1740486648664,-500.0,0.00056438,120]
[354428532,1740486648673,-500.0,0.00056438,120]
[354428533,1740486648683,-500.0,0.00056438,120]
[354428534,1740486648692,-500.0,0.00056438,120]
[354428535,1740486648703,-488.94817125,0.00056438,120]
[354428536,1740486648712,-635.92,0.00056438,120]
[354428537,1740486648721,-500.0,0.00056438,120]
[354428538,1740486648731,-1410.01,0.00056438,120]
[354428539,1740486648740,-467.63351307,0.00056438,120]
[354428540,1740486648749,-1256.69,0.00056438,120]
[354428541,1740486648759,-2599.98,0.00056438,120]
[354428542,1740486648768,-500.0,0.00056438,120]
[354428543,1740486648777,-500.0,0.00056438,120]
[354428544,1740486648787,-9829.16,0.00056438,120]
[354428545,1740486648798,-500.0,0.00056438,120]
[354428546,1740486648808,-500.0,0.00056438,120]
[354428547,1740486648817,-1468.56,0.00056438,120]
[354428548,1740486648827,-856.65,0.00056438,120]
[354428549,1740486648836,-500.0,0.00056438,120]
[354428550,1740486648847,-1539.89,0.00056438,120]
[354428551,1740486648857,-500.0,0.00056438,120]
[354428552,1740486648868,-6514.75,0.00056438,120]
[354428553,1740486648878,-586.4,0.00056438,120]
[354428554,1740486648887,-500.0,0.00056438,120]
[354428555,1740486648898,-931.35,0.00056438,120]
[354428556,1740486648908,-865.41,0.00056438,120]
[354428557,1740486648918,-500.0,0.00056438,120]
[354428558,1740486648928,-636.62,0.00056438,120]
[354428559,1740486648937,-500.0,0.00056438,120]
[354428560,1740486648948,-1135.43,0.00056438,120]
[354428561,1740486648958,-1136.01,0.00056438,120]
[354428562,1740486648968,-131708.31,0.00056438,7]
[354428563,1740486648978,-615.81,0.00056438,120]
[354428564,1740486648988,-2917.81,0.00056438,3]
[354428565,1740486648998,-500.0,0.00056438,30]
[354428566,1740486649009,-500.0,0.00056438,120]
[354428567,1740486649018,-2804.61,0.00056438,120]
[354428568,1740486649028,-1068.79,0.00056438,120]
[354428569,1740486649038,-601.54,0.00056438,120]
[354428570,1740486649049,-4396.17,0.00056438,120]
[354428571,1740486649060,-730.05,0.00056438,120]
[354428572,1740486649070,-500.0,0.00056438,120]
[354428573,1740486649080,-500.0,0.00056438,120]
[354428574,1740486649090,-500.0,0.00056438,120]
[354428575,1740486649104,-500.0,0.00056438,120]
[354428576,1740486649114,-652.44,0.00056438,120]
[354428577,1740486649123,-500.0,0.00056438,120]
[354428578,1740486649133,-957.41,0.00056438,120]
[354428579,1740486649145,-1633.36,0.00056438,120]
[354428580,1740486649156,-481.838,0.00056438,120]
[354428581,1740486649166,-1126.06,0.00056438,120]
[354428582,1740486649176,-18506.92,0.00056438,120]
[354428583,1740486649186,-695.05,0.00056438,120]
[354428584,1740486649197,-500.0,0.00056438,120]
[354428585,1740486649206,-500.0,0.00056438,120]
[354428586,1740486649216,-708.39,0.00056438,120]
[354428587,1740486649226,-500.0,0.00056438,120]
[354428588,1740486649235,-4183.1,0.00056438,120]
[354428589,1740486649245,-584.81,0.00056438,120]
[354428590,1740486649256,-500.0,0.00056438,120]
[354428591,1740486649265,-25764.85,0.00056438,120]
[354428592,1740486649275,-500.0,0.00056438,120]
[354428593,1740486649285,-500.0,0.00056438,120]
[354428594,1740486649294,-500.0,0.00056438,120]
[354428595,1740486649306,-500.0,0.00056438,120]
[354428596,1740486649315,-535.8,0.00056438,120]
[354428597,1740486649324,-500.0,0.00056438,120]
[354428598,1740486649334,-805.15,0.00056438,120]
[354428599,1740486649344,-1000.0,0.00056438,20]
[354428600,1740486649353,-500.0,0.00056438,120]
[354428601,1740486649363,-2142.62,0.00056438,120]
[354428602,1740486649373,-733.44,0.00056438,120]
[354428603,1740486649382,-500.0,0.00056438,120]
[354428604,1740486649391,-633.81,0.00056438,120]
[354428605,1740486649401,-500.0,0.00056438,120]
[354428606,1740486649410,-574.98,0.00056438,120]
[354428607,1740486649419,-1864.83,0.00056438,120]
[354428608,1740486649429,-500.0,0.00056438,120]
[354428609,1740486649439,-27694.65,0.00056438,6]
[354428610,1740486649448,-743.57,0.00056438,120]
[354428611,1740486649458,-500.0,0.00056712,120]
[354428612,1740486649467,-500.0,0.00056712,120]
[354428613,1740486649476,-509.24318373,0.00056712,120]
[354428614,1740486649486,-151.0,0.000568,23]
[354428615,1740486649495,-500.0,0.00056943,15]
[354428616,1740486649505,-500.0,0.00056943,15]
[354428617,1740486649515,-150.0,0.00056973,15]
[354428618,1740486649524,-500.0,0.00056986,120]
[354428619,1740486649534,-500.0,0.00056986,120]
[354428620,1740486649543,-500.0,0.00056986,120]
[354428621,1740486649553,-500.0,0.00056986,120]
[354428622,1740486649562,-573.03,0.00056986,120]
[354428623,1740486649572,-500.0,0.00056986,120]
[354428624,1740486649581,-500.0,0.00056986,120]
[354428625,1740486649590,-500.0,0.00056986,120]
[354428626,1740486649600,-500.0,0.00056986,120]
[354428627,1740486649610,-500.0,0.00056986,120]
[354428628,1740486649619,-500.0,0.00056986,120]
[354428629,1740486649629,-500.0,0.00056986,120]
[354428630,1740486649638,-542.2,0.00056986,120]
[354428631,1740486649648,-500.0,0.00056986,120]
[354428632,1740486649658,-500.0,0.00056986,120]
[354428633,1740486649668,-500.0,0.00056986,120]
[354428634,1740486649677,-583.8,0.00056986,120]
[354428635,1740486649687,-500.0,0.00056986,120]
[354428636,1740486649698,-626.44,0.00056986,120]
[354428637,1740486649708,-500.0,0.00056986,120]
[354428638,1740486649718,-500.0,0.00056986,120]
[354428639,1740486649728,-500.0,0.00056986,120]
[354428640,1740486649738,-500.0,0.00056986,120]
[354428641,1740486649748,-500.0,0.00056986,120]
[354428642,1740486649834,-623.38,0.00056986,120]
[354428643,1740486649844,-542.11,0.00056986,120]
[354428644,1740486649854,-500.0,0.00056986,120]
[354428645,1740486649864,-500.0,0.00056986,120]
[354428646,1740486649874,-500.0,0.00056986,120]
[354428647,1740486649884,-574.88,0.00056986,120]
[354428648,1740486649894,-625.61,0.00056986,120]
[354428649,1740486649904,-683.86,0.00056986,120]
[354428650,1740486649914,-987.06,0.00056986,120]
[354428651,1740486649924,-500.0,0.00056986,120]
[354428652,1740486649934,-500.0,0.00056986,120]
[354428653,1740486649943,-500.0,0.00056986,120]
[354428654,1740486649953,-500.0,0.00056986,120]
[354428655,1740486649963,-667.86,0.00056986,120]
[354428656,1740486649973,-7683.15,0.00056986,120]
[354428657,1740486649984,-1368.06,0.00056986,120]
[354428658,1740486649994,-500.0,0.00056986,120]
[354428659,1740486650003,-500.0,0.00056986,120]
[354428660,1740486650012,-500.0,0.00056986,120]
[354428661,1740486650022,-2395.79,0.00056986,120]
[354428662,1740486650031,-500.0,0.00056986,120]
[354428663,1740486650041,-500.0,0.00056986,120]
[354428664,1740486650051,-205.51844783,0.00056986,120]
[354428665,1740486650060,-500.0,0.00056986,120]
[354428666,1740486650069,-500.0,0.00056986,120]
[354428667,1740486650078,-500.0,0.00056986,120]
[354428668,1740486650087,-500.0,0.00056986,120]
[354428669,1740486650097,-635.92,0.00056986,120]
[354428670,1740486650109,-500.0,0.00056986,120]
[354428671,1740486650119,-1410.01,0.00056986,120]
[354428672,1740486650128,-1256.69,0.00056986,120]
[354428673,1740486650137,-2599.98,0.00056986,120]
[354428674,1740486650147,-500.0,0.00056986,120]
[354428675,1740486650156,-500.0,0.00056986,120]
[354428676,1740486650166,-9829.16,0.00056986,120]
[354428677,1740486650175,-500.0,0.00056986,120]
[354428678,1740486650185,-500.0,0.00056986,120]
[354428679,1740486650195,-1468.56,0.00056986,120]
[354428680,1740486650204,-856.65,0.00056986,120]
[354428681,1740486650214,-500.0,0.00056986,120]
[354428682,1740486650223,-1539.89,0.00056986,120]
[354428683,1740486650233,-500.0,0.00056986,120]
[354428684,1740486650242,-6514.75,0.00056986,120]
[354428685,1740486650252,-586.4,0.00056986,120]
[354428686,1740486650261,-500.0,0.00056986,120]
[354428687,1740486650271,-931.35,0.00056986,120]
[354428688,1740486650281,-865.41,0.00056986,120]
[354428689,1740486650290,-500.0,0.00056986,120]
[354428690,1740486650301,-636.62,0.00056986,120]
[354428691,1740486650310,-500.0,0.00056986,120]
[354428692,1740486650323,-1135.43,0.00056986,120]
[354428693,1740486650333,-1136.01,0.00056986,120]
[354428694,1740486650343,-120703.51637684,0.00056986,7]
[354428695,1740486650492,-11004.79362316,0.00056986,7]
[354428696,1740486650502,-615.81,0.00056986,120]
[354428697,1740486650511,-500.0,0.00056986,30]
[354428698,1740486650521,-2917.81,0.00056986,3]
[354428699,1740486650531,-500.0,0.00056986,120]
[354428700,1740486650540,-2336.38634484,0.00056986,120]
[354428701,1740486650688,-150.10327358,0.0005165,28]
[354428702,1740486650698,-187.98904676,0.00054794,120]
[354428703,1740486656832,-312.01095324,0.00054794,120]
[354428704,1740486656841,-500.0,0.00054794,120]
[354428705,1740486656851,-500.0,0.00054794,120]
[354428706,1740486656860,-500.0,0.00054794,120]
[354428707,1740486656869,-500.94731505,0.00054794,120]
[354428708,1740486656879,-500.0,0.00054794,120]
[354428709,1740486656888,-500.0,0.00054794,120]
[354428710,1740486656898,-500.0,0.00054794,120]
[354428711,1740486656907,-500.0,0.00055342,120]
[354428712,1740486656916,-500.0,0.00055342,120]
[354428713,1740486656925,-500.0,0.00055342,120]
[354428714,1740486656935,-500.0,0.0005589,120]
[354428715,1740486656944,-468.22365516,0.00056986,120]
[354428716,1740486656953,-1068.79,0.00056986,120]
[354428717,1740486656962,-601.54,0.00056986,120]
[354428718,1740486656972,-4396.17,0.00056986,120]
[354428719,1740486656982,-730.05,0.00056986,120]
[354428720,1740486656991,-500.0,0.00056986,120]
[354428721,1740486657001,-500.0,0.00056986,120]
[354428722,1740486657010,-500.0,0.00056986,120]
[354428723,1740486657020,-500.0,0.00056986,120]
[354428724,1740486657030,-652.44,0.00056986,120]
[354428725,1740486657039,-500.0,0.00056986,120]
[354428726,1740486657049,-957.41,0.00056986,120]
[354428727,1740486657060,-699.98127655,0.00056986,120]
[354428728,1740486657072,-933.37872345,0.00056986,120]
[354428729,1740486657082,-1066.62127655,0.00056986,120]
[354428730,1740486657093,-59.43872345,0.00056986,120]
[354428731,1740486657107,-646.01127665,0.00056986,120]
[354428732,1740486657190,-166.46015072,0.00056986,120]
[354428733,1740486741211,3000.0,0.00066788,120]
[354428734,1740486907988,22429.5024738,0.00017964,5]
[354428735,1740487101687,3000.0,0.000159,120]
[354428738,1740487267615,22418.86068058,0.00017964,5]
[354428739,1740487267641,1865.48952127,0.00017964,5]
[354428740,1740487323450,53320.02937507,0.00066679,120]
[354428741,1740487541355,1000.0,0.00066686,120]
[354428742,1740487591773,10000.0,0.00066686,30]
[354428743,1740487630133,-550.0,0.00047009,5]
[354428744,1740487630156,-7455.2155365,0.0004701,2]
[354428745,1740487630181,-293.03350861,0.0004743,2]
[354428746,1740487660045,20465.079171,0.00066683,30]
[354428747,1740487702853,182.1967238,0.00013699,2]
[354428748,1740487713527,10000.0,0.00066683,60]
[354428749,1740487739925,10000.0,0.00066683,60]
[354428750,1740487774972,10000.0,0.00066683,60]
[354428751,1740487796582,5000.000001,0.00066683,2]
[354428752,1740487802297,18000.0,0.00066683,60]
[354428794,1740487832729,-500.0,0.00030342,7]
[354428795,1740487832739,-391.83,0.00039999,5]
[354428796,1740487832755,-8.17,0.00039999,5]
[354428797,1740487832765,-16675.8371259,0.0004,7]
[354428799,1740487837926,-3324.1628741,0.0004,7]
[354428800,1740487837935,-550.0,0.00042666,5]
[354428801,1740487837945,-244.0,0.00047,80]
[354428802,1740487837955,-855.77139244,0.0004733,120]
[354428803,1740487837966,-13.76921409,0.0004743,2]
[354428804,1740487837976,-1000.0000002,0.00047668,2]
[354428805,1740487837986,-800.0,0.0005,2]
[354428806,1740487837996,-855.7713924,0.00051902,120]
[354428807,1740487838006,-154.36745923,0.00054673,28]
[354428808,1740487838015,-500.0,0.00054773,7]
[354428809,1740487838025,-500.0,0.00054773,10]
[354428810,1740487838039,-500.0,0.00054773,10]
[354428812,1740487838049,-500.0,0.00054773,2]
[354428814,1740487838059,-500.0,0.00054773,10]
[354428816,1740487838069,-500.0,0.00054773,7]
[354428818,1740487838079,-592.75987409,0.00054773,2]
[354428820,1740487838090,-500.0,0.00054773,7]
[354428822,1740487838100,-578.48464156,0.00054773,10]
[354428824,1740487838110,-275.23146651,0.00054773,10]
[354428826,1740487838120,-500.0,0.00054773,10]
[354428828,1740487838130,-500.0,0.00054773,10]
[354428829,1740487838140,-584.051155,0.00054773,10]
[354428830,1740487838151,-500.0,0.00054773,10]
[354428831,1740487838160,-500.0,0.00054773,10]
[354428832,1740487838170,-451.0,0.00054773,10]
[354428833,1740487838180,-500.0,0.00054773,10]
[354428834,1740487838190,-612.16439325,0.00054773,10]
[354428835,1740487838199,-500.0,0.00054773,10]
[354428836,1740487838209,-400.17803338,0.00054773,10]
[354428837,1740487838219,-500.0,0.00054773,10]
[354428838,1740487838228,-1079.99,0.00054774,30]
[354428839,1740487838238,-900.0,0.00054774,30]
[354428840,1740487838248,-750.0,0.00054774,30]
[354428841,1740487838258,-625.0,0.00054774,30]
[354428842,1740487838268,-520.83,0.00054774,30]
[354428843,1740487838278,-434.02,0.00054774,30]
[354428844,1740487838288,-361.69,0.00054774,30]
[354428845,1740487838298,-301.41,0.00054774,30]
[354428846,1740487838308,-281.78,0.0005478,30]
[354428847,1740487838318,-126574.344853,0.00054784,5]
[354428848,1740487838328,-315.95268171,0.00054784,5]
[354428849,1740487838338,-418.658,0.00054784,103]
[354428850,1740487838347,-500.0,0.00054788,120]
[354428851,1740487838357,-311.6436891,0.00054788,120]
[354428852,1740487838367,-500.0,0.00054788,120]
[354428853,1740487838377,-500.0,0.00054788,2]
[354428854,1740487838386,-500.0,0.00054788,120]
[354428855,1740487838396,-285.02540247,0.00054788,120]
[354428856,1740487838406,-500.0,0.00054788,120]
[354428857,1740487838416,-500.0,0.00054788,31]
[354428858,1740487838425,-500.0,0.00054788,120]
[354428859,1740487838435,-500.0,0.00054788,120]
[354428860,1740487838445,-500.0,0.00054788,2]
[354428861,1740487838536,-500.0,0.00054788,120]
[354428862,1740487838560,-500.0,0.00054788,120]
[354428863,1740487838570,-414.59341504,0.00054788,120]
[354428864,1740487838581,-353.52973595,0.00054788,31]
[354428865,1740487838590,-500.0,0.00054788,120]
[354428866,1740487838600,-500.0,0.00054788,120]
[354428867,1740487838609,-500.0,0.00054788,120]
[354428868,1740487838619,-500.0,0.00054788,120]
[354428869,1740487838628,-505.56153692,0.00054788,2]
[354428870,1740487838637,-500.0,0.00054788,120]
[354428871,1740487838647,-500.0,0.00054788,120]
[354428872,1740487838656,-500.0,0.00054788,120]
[354428873,1740487838666,-500.0,0.00054788,120]
[354428874,1740487838676,-500.0,0.00054788,120]
[354428875,1740487838686,-500.0,0.00054788,120]
[354428876,1740487838696,-500.0,0.00054788,120]
[354428877,1740487838705,-500.0,0.00054788,120]
[354428878,1740487838715,-500.0,0.00054788,120]
[354428879,1740487838725,-500.0,0.00054788,120]
[354428880,1740487838734,-500.0,0.00054788,120]
[354428881,1740487838744,-500.0,0.00054788,120]
[354428882,1740487838753,-500.0,0.00054788,120]
[354428883,1740487838763,-500.0,0.00054788,120]
[354428884,1740487838772,-500.0,0.00054788,120]
[354428885,1740487838781,-500.0,0.00054788,120]
[354428886,1740487838791,-500.0,0.00054788,120]
[354428887,1740487838800,-500.0,0.00054788,120]
[354428888,1740487838809,-507.55942531,0.00054788,120]
[354428889,1740487838818,-500.0,0.00054788,120]
[354428890,1740487838827,-500.0,0.00054788,120]
[354428891,1740487838837,-500.0,0.00054788,120]
[354428892,1740487838846,-500.0,0.00054788,120]
[354428893,1740487838856,-500.0,0.00054788,120]
[354428894,1740487838865,-500.0,0.00054788,120]
[354428895,1740487838874,-500.0,0.00054788,120]
[354428896,1740487838884,-500.0,0.00054788,120]
[354428897,1740487838893,-500.0,0.00054788,120]
[354428898,1740487838903,-500.0,0.00054788,120]
[354428899,1740487838912,-500.0,0.00054788,120]
[354428900,1740487838922,-500.0,0.00054788,120]
[354428901,1740487838931,-219.32847304,0.00054788,120]
[354428902,1740487838941,-500.0,0.00054788,120]
[354428903,1740487838950,-500.0,0.00054788,120]
[354428904,1740487838960,-500.0,0.00054788,120]
[354428905,1740487838969,-500.0,0.00054788,120]
[354428906,1740487838981,-500.0,0.00054788,120]
[354428907,1740487838990,-500.0,0.00054788,120]
[354428908,1740487838999,-500.0,0.00054788,120]
[354428909,1740487839009,-500.0,0.00054788,120]
[354428910,1740487839018,-500.0,0.00054788,120]
[354428911,1740487839028,-500.0,0.00054788,120]
[354428912,1740487839038,-500.0,0.00054788,120]
[354428913,1740487839048,-500.0,0.00054788,120]
[354428914,1740487839059,-500.0,0.00054788,120]
[354428915,1740487839068,-500.0,0.00054788,120]
[354428916,1740487839079,-500.0,0.00054788,120]
[354428917,1740487839089,-500.0,0.00054788,120]
[354428918,1740487839100,-545.97937998,0.00054788,120]
[354428919,1740487839109,-500.0,0.00054788,120]
[354428920,1740487839120,-500.0,0.00054788,120]
[354428921,1740487839130,-500.0,0.00054788,120]
[354428922,1740487839139,-500.0,0.00054788,120]
[354428923,1740487839150,-500.0,0.00054788,120]
[354428924,1740487839159,-500.0,0.00054788,120]
[354428925,1740487839169,-500.0,0.00054788,120]
[354428926,1740487839179,-500.0,0.00054788,120]
[354428927,1740487839189,-500.0,0.00054788,120]
[354428928,1740487839199,-500.0,0.00054788,120]
[354428929,1740487839209,-500.0,0.00054788,120]
[354428930,1740487839219,-500.0,0.00054788,120]
[354428931,1740487839229,-63287.1724265,0.0005479,5]
[354428932,1740487839238,-500.0,0.00054793,120]
[354428933,1740487839249,-500.0,0.00054793,31]
[354428934,1740487839259,-364.82972607,0.00054793,31]
[354428935,1740487839269,-500.0,0.00054794,30]
[354428936,1740487839278,-500.0,0.00054794,120]
[354428937,1740487839288,-518.1062202,0.00054794,120]
[354428938,1740487839298,-433.01156394,0.00054794,120]
[354428939,1740487839307,-500.0,0.00054794,120]
[354428940,1740487839317,-268.32934947,0.00054794,120]
[354428941,1740487839327,-500.0,0.00054794,120]
[354428942,1740487839336,-500.0,0.00054794,120]
[354428943,1740487839345,-500.0,0.00054794,120]
[354428944,1740487839355,-505.62265198,0.00054794,120]
[354428945,1740487839375,-286.13266913,0.00054794,120]
[354428946,1740487839387,-503.063208,0.00054794,120]
[354428947,1740487839398,-254.50991284,0.00054794,120]
[354428948,1740487839409,-583.17267445,0.00054794,120]
[354428949,1740487839420,-501.04817537,0.00054794,120]
[354428950,1740487839431,-500.0,0.00054794,120]
[354428951,1740487839441,-500.0,0.00054794,120]
[354428952,1740487839452,-518.17688282,0.00054794,120]
[354428953,1740487839462,-250.0,0.00054794,120]
[354428954,1740487839472,-500.0,0.00054794,120]
[354428955,1740487839483,-655.44,0.00054794,120]
[354428956,1740487839493,-533.5925284,0.00054794,120]
[354428957,1740487839505,-500.0,0.00054794,120]
[354428958,1740487839519,-3000.0,0.00054794,30]
[354428959,1740487839529,-500.0,0.00054794,120]
[354428960,1740487839539,-500.0,0.00054794,120]
[354428961,1740487839552,-500.0,0.00054794,120]
[354428962,1740487839562,-550.93590628,0.00054794,120]
[354428963,1740487839572,-500.0,0.00054794,120]
[354428964,1740487839582,-500.0,0.00054794,120]
[354428965,1740487839594,-500.0,0.00054794,120]
[354428966,1740487839604,-503.61220938,0.00054794,120]
[354428967,1740487839614,-500.0,0.00054794,120]
[354428968,1740487839624,-500.0,0.00054794,120]
[354428969,1740487839634,-500.0,0.00054794,120]
[354428972,1740487839748,-500.0,0.00054794,120]
[354428973,1740487839758,-503.79105076,0.00054794,120]
[354428974,1740487839768,-500.0,0.00054794,120]
[354428975,1740487839778,-500.0,0.00054794,120]
[354428976,1740487839788,-500.0,0.00054794,120]
[354428977,1740487839798,-500.0,0.00054794,120]
[354428978,1740487839807,-502.30954638,0.00054794,120]
[354428979,1740487839818,-500.0,0.00054794,120]
[354428981,1740487839827,-500.0,0.00054794,120]
[354428982,1740487839837,-627.41118416,0.00054794,120]
[354428984,1740487839847,-500.0,0.00054794,120]
[354428985,1740487839856,-501.51327035,0.00054794,120]
[354428986,1740487839866,-500.0,0.00054794,120]
[354428987,1740487839876,-500.0,0.00054794,120]
[354428988,1740487839886,-500.0,0.00054794,120]
[354428990,1740487839896,-500.0,0.00054794,120]
[354428991,1740487839905,-506.33836688,0.00054794,120]
[354428992,1740487839915,-204.88755174,0.00054794,120]
[354428993,1740487839925,-247.49734324,0.00054794,120]
[354428994,1740487839935,-502.00897485,0.00054794,120]
[354428995,1740487839944,-500.0,0.00054794,120]
[354428996,1740487839955,-500.0,0.00054794,120]
[354428997,1740487839964,-500.0,0.00054794,120]
[354428998,1740487839974,-500.0,0.00054794,120]
[354428999,1740487839985,-186.79683411,0.00054794,120]
[354429000,1740487839994,-500.0,0.00054794,120]
[354429001,1740487840004,-500.0,0.00054794,120]
[354429003,1740487840014,-2000.0,0.00054794,120]
[354429004,1740487840024,-626.0700794,0.00054794,120]
[354429005,1740487840034,-501.50690427,0.00054794,120]
[354429006,1740487840043,-500.0,0.00054794,120]
[354429007,1740487840053,-500.0,0.00054794,120]
[354429008,1740487840063,-500.0,0.00054794,120]
[354429009,1740487840072,-500.0,0.00054794,120]
[354429010,1740487840081,-500.0,0.00054794,120]
[354429011,1740487840091,-502.36137601,0.00054794,120]
[354429012,1740487840101,-500.0,0.00054794,120]
[354429013,1740487840111,-500.0,0.00054794,120]
[354429014,1740487840121,-501.21262712,0.00054794,120]
[354429015,1740487840131,-500.0,0.00054794,120]
[354429016,1740487840141,-500.0,0.00054794,120]
[354429017,1740487840151,-500.0,0.00054794,120]
[354429018,1740487840161,-504.59382959,0.00054794,120]
[354429019,1740487840171,-500.0,0.00054794,120]
[354429020,1740487840181,-500.0,0.00054794,120]
[354429021,1740487840191,-500.0,0.00054794,120]
[354429022,1740487840201,-506.55637877,0.00054794,120]
[354429023,1740487840211,-500.0,0.00054794,120]
[354429024,1740487840221,-501.43243371,0.00054794,120]
[354429025,1740487840231,-500.0,0.00054794,120]
[354429026,1740487840240,-516.77,0.00054794,120]
[354429027,1740487840250,-500.0,0.00054794,120]
[354429028,1740487840259,-500.0,0.00054794,120]
[354429029,1740487840269,-500.0,0.00054794,120]
[354429030,1740487840279,-500.0,0.00054794,120]
[354429031,1740487840289,-500.0,0.00054794,120]
[354429032,1740487840299,-500.0,0.00054794,120]
[354429033,1740487840309,-500.0,0.00054794,120]
[354429034,1740487840318,-500.0,0.00054794,120]
[354429035,1740487840328,-500.0,0.00054794,120]
[354429036,1740487840338,-503.19530357,0.00054794,120]